bitfinex/quotes_ETHUSD_20241216
["timestamp","ask_amount","ask_price","bid_price","bid_amount"]
[1734361361466,3.3253389,3913.1,3912.6,0.1640142]
[1734361362210,3.0,3913.1,3912.7,0.7565]
[1734361362427,3.0,3913.6,3912.7,0.7565]
[1734361363743,3.0,3913.6,3912.6,0.1640142]
[1734361363744,3.25338899,3914.2,3912.9,0.7694]
[1734361364307,0.90904403,3914.6,3913.0,0.02555178]
[1734361364505,3.25338899,3915.2,3913.0,0.02555178]
[1734361364506,3.25338899,3915.2,3913.2,0.55]
[1734361364746,3.25338899,3915.2,3913.5,0.55]
[1734361364747,3.57872789,3915.2,3913.5,0.55]
[1734361364955,0.398879,3915.1,3913.6,0.8068]
[1734361365107,0.12824438,3915.3,3913.6,0.8068]
[1734361365446,3.25338899,3915.7,3913.7,0.55]
[1734361365647,3.25338899,3916.2,3914.2,0.55]
[1734361365805,3.25338899,3916.2,3914.3,0.8068]
[1734361366004,0.8068,3915.3,3914.3,0.8068]
[1734361366204,3.25338899,3915.7,3914.3,0.8068]
[1734361367266,3.25338899,3915.7,3913.2,0.25]
[1734361367267,0.8068,3916.1,3913.8,0.8104]
[1734361367464,3.25338899,3916.7,3914.3,0.55]
[1734361367617,0.3253389,3916.6,3914.7,0.55]
[1734361367820,0.3253389,3916.6,3914.8,0.8104]
[1734361368262,1.1357389,3916.6,3914.9,0.02553838]
[1734361368464,3.64198899,3917.2,3915.2,0.8104]
[1734361368665,3.25338899,3917.2,3915.2,0.8104]
[1734361368846,0.12545008,3916.8,3915.2,0.8104]
[1734361369251,0.12545008,3916.8,3915.2,0.83593473]
[1734361369486,3.25338899,3917.2,3915.2,0.83593473]
[1734361369487,3.25338899,3917.2,3915.3,0.55]
[1734361369777,0.8104,3917.2,3915.5,0.55]
[1734361370063,3.25338899,3917.7,3915.6,0.7916]
[1734361370269,0.835935,3917.1,3915.6,0.7916]
[1734361372026,0.835935,3917.1,3915.7,0.79393229]
[1734361372338,0.835935,3917.1,3915.9,0.7684]
[1734361373238,3.25338899,3918.2,3916.2,0.55]
[1734361373439,0.7684,3918.1,3916.3,0.754]
[1734361374564,0.7684,3918.1,3916.5,0.8284]
[1734361374807,1.06383483,3919.6,3916.8,0.55]
[1734361375104,0.59117329,3919.5,3917.2,0.55]
[1734361375316,0.8151,3919.6,3917.7,0.8313]
[1734361375519,0.8151,3919.6,3918.0,0.55]
[1734361375722,0.8151,3919.6,3918.2,0.55]
[1734361376379,0.8151,3919.6,3918.3,0.7722]
[1734361377325,0.8151,3919.6,3918.3,0.79771532]
[1734361377474,0.8151,3919.6,3918.3,0.90697153]
[1734361379828,0.8151,3919.6,3918.7,0.7837]
[1734361380032,0.8151,3919.6,3918.9,0.7986]
[1734361380383,0.12483629,3920.4,3918.9,0.7986]
[1734361380784,0.7986,3920.1,3918.9,0.7986]
[1734361382687,0.12972833,3920.8,3918.9,0.7986]
[1734361382884,0.12972833,3920.8,3919.1,0.762]
[1734361383082,0.7986,3921.1,3918.3,0.13477153]
[1734361383083,0.7986,3921.1,3919.3,0.55]
[1734361383288,0.7986,3921.1,3919.5,0.55]
[1734361383590,0.25,3923.8,3918.3,0.13477153]
[1734361383591,0.3886,3922.7,3920.0,0.55]
[1734361383914,0.3886,3922.7,3919.7,0.25]
[1734361383915,0.3641989,3922.6,3920.4,0.55]
[1734361384117,3.25338899,3922.4,3920.5,0.7862]
[1734361384639,0.9141989,3922.6,3920.6,0.02550205]
[1734361384803,0.9141989,3922.6,3920.7,0.7542]
[1734361385402,0.9141989,3922.6,3920.8,0.55]
[1734361385643,0.9141989,3922.6,3920.9,0.88462]
[1734361386461,0.55,3922.6,3920.9,0.88462]
[1734361387117,0.55,3922.6,3920.9,0.7542]
[1734361387835,0.55,3922.6,3920.3,0.02549858]
[1734361388004,0.55,3922.6,3920.5,0.55]
[1734361388203,0.55,3922.6,3920.7,0.8302]
[1734361388444,0.55,3922.6,3920.6,0.55]
[1734361388624,0.55,3922.6,3920.7,0.8302]
[1734361389134,3.0,3922.1,3920.7,0.8302]
[1734361389542,3.25338899,3922.2,3920.7,0.8302]
[1734361389877,0.55,3922.6,3920.7,0.85570241]
[1734361390022,3.25338899,3923.3,3920.7,0.85570241]
[1734361390215,3.25338899,3922.8,3920.7,0.8302]
[1734361390422,3.25338899,3922.3,3920.7,0.8302]
[1734361391161,3.4271872,3922.7,3920.7,0.8302]
[1734361391462,0.4271872,3922.7,3921.1,0.7801]
[1734361391770,3.0,3922.7,3921.1,0.7801]
[1734361392320,3.0,3922.7,3920.3,0.0254951]
[1734361392321,0.3886,3924.7,3921.4,0.55]
[1734361392527,3.25338899,3924.2,3921.8,0.55]
[1734361392855,0.7801,3923.4,3922.1,0.55]
[1734361393165,3.25338899,3924.2,3922.3,0.8117]
[1734361393317,3.25338899,3924.2,3922.1,0.55]
[1734361393318,1.1370389,3924.1,3922.5,0.8208]
[1734361393724,3.25338899,3923.7,3922.5,0.8208]
[1734361394227,3.0,3923.6,3922.5,0.8208]
[1734361395562,3.25338899,3923.2,3922.5,0.8208]
[1734361395865,3.0,3923.1,3922.5,0.8208]
[1734361396022,0.6253389,3923.0,3922.5,0.8208]
[1734361396486,3.0,3922.6,3920.8,0.8072]
[1734361396627,3.0,3922.1,3920.8,0.8072]
[1734361397124,3.25338899,3922.2,3920.8,0.8072]
[1734361397327,3.0,3922.1,3920.8,0.8072]
[1734361397634,0.6253389,3922.0,3920.8,0.8072]
[1734361397861,3.25338899,3921.7,3920.8,0.8072]
[1734361398274,0.6253389,3922.0,3920.8,0.8072]
[1734361398443,3.25338899,3922.7,3920.8,0.8072]
[1734361398772,3.25338899,3923.2,3920.9,0.83129855]
[1734361399119,3.25338899,3923.8,3920.9,0.83129855]
[1734361399374,3.25338899,3923.8,3920.9,0.27549855]
[1734361399527,3.25338899,3923.8,3921.0,0.7606]
[1734361399724,0.3641989,3923.7,3921.4,0.7606]
[1734361399954,1.1370389,3924.1,3920.7,0.25]
[1734361399955,1.1370389,3924.1,3921.8,0.7606]
[1734361400170,0.8117,3924.1,3922.1,0.55]
[1734361400395,0.8117,3924.1,3922.4,0.55]
[1734361400605,0.8117,3924.1,3922.5,0.7606]
[1734361400898,3.25338899,3923.2,3922.5,0.7606]
[1734361401250,3.0,3923.1,3922.5,0.7606]
[1734361401451,0.6253389,3923.0,3922.5,0.7606]
[1734361402607,3.25338899,3922.7,3920.6,0.7779]
[1734361403802,3.25338899,3922.7,3919.6,0.25]
[1734361403803,3.25338899,3922.7,3920.9,0.55]
[1734361403956,3.25338899,3922.7,3921.0,0.8206]
[1734361404599,0.3886,3923.9,3921.3,0.55]
[1734361404600,3.25338899,3923.2,3921.3,0.55]
[1734361404752,3.0,3923.1,3921.4,0.8331]
[1734361404957,3.25338899,3923.8,3921.7,0.55]
[1734361405200,0.8117,3924.1,3922.0,0.8331]
[1734361405364,0.8117,3924.1,3922.2,0.8109]
[1734361405693,0.8117,3924.1,3922.5,0.55]
[1734361405853,0.8117,3924.1,3922.6,0.8109]
[1734361406488,0.8117,3924.1,3922.8,0.8116]
[1734361406661,0.38117,3924.0,3922.8,0.8116]
[1734361407273,3.25338899,3924.9,3923.0,0.7658]
[1734361407506,3.25338899,3924.9,3923.3,0.55]
[1734361407655,0.8116,3924.4,3923.4,0.7658]
[1734361408729,0.8116,3924.4,3923.5,0.0254834]
[1734361408878,0.8116,3924.4,3923.6,0.7658]
[1734361410829,3.25338899,3924.9,3923.8,0.8036]
[1734361411033,0.7658,3924.8,3923.8,0.8036]
[1734361411192,3.57872789,3924.9,3923.8,0.8036]
[1734361411379,4.38232789,3924.9,3923.8,0.8036]
[1734361412082,3.0,3924.8,3923.8,0.8036]
[1734361415186,0.8036,3924.9,3923.9,0.55]
[1734361415416,3.25338899,3926.0,3924.1,0.55]
[1734361415598,0.8036,3925.9,3924.4,0.831]
[1734361416013,0.8036,3925.9,3924.3,0.55]
[1734361416014,0.8036,3925.9,3924.5,0.57547613]
[1734361416183,3.25338899,3926.0,3924.7,0.55]
[1734361416385,3.25338899,3926.0,3925.0,0.7526]
[1734361416617,0.4271022,3925.9,3925.0,0.7526]
[1734361416824,1.017633,3926.2,3925.0,0.7526]
[1734361417027,3.37896411,3926.5,3925.0,0.7526]
[1734361417191,0.7526,3926.2,3925.3,0.55]
[1734361417385,3.25338899,3927.0,3925.5,0.7526]
[1734361417602,3.25338899,3927.0,3925.6,0.7526]
[1734361417913,3.25338899,3926.5,3925.6,0.7526]
[1734361419216,1.0779389,3926.9,3925.7,0.55]
[1734361419398,1.0779389,3926.9,3925.8,0.8031]
[1734361419748,0.3253389,3926.9,3925.8,0.8031]
[1734361419953,0.3253389,3926.9,3925.9,0.55]
[1734361420108,3.25338899,3927.0,3926.0,0.8031]
[1734361420941,3.25338899,3926.5,3926.0,0.8031]
[1734361422403,3.0,3926.9,3926.0,0.8031]
[1734361423138,3.25338899,3926.5,3926.0,0.8031]
[1734361423499,3.25338899,3927.0,3926.0,0.8031]
[1734361423744,3.6253389,3926.9,3926.0,0.8031]
[1734361424040,3.25338899,3926.5,3926.0,0.8031]
[1734361425007,0.6253389,3926.9,3926.0,0.8031]
[1734361425219,3.6253389,3926.9,3926.0,0.8031]
[1734361425646,0.6253389,3926.9,3926.0,0.8031]
[1734361425856,0.38787279,3926.8,3926.0,0.8031]
[1734361426034,1.14199853,3927.3,3926.0,0.8031]
[1734361426637,1.017365,3927.3,3926.0,0.8031]
[1734361428266,0.8031,3927.3,3926.2,0.8305]
[1734361428481,0.8031,3927.3,3926.4,0.8305]
[1734361428686,3.0,3927.4,3926.4,0.8305]
[1734361428967,0.8305,3927.6,3926.4,0.8305]
[1734361429192,3.25338899,3928.0,3926.5,0.55]
[1734361429466,3.25338899,3928.0,3926.6,0.8305]
[1734361429650,3.38288207,3928.0,3926.6,0.8305]
[1734361429825,4.39084479,3928.0,3926.6,0.8305]
[1734361430026,0.43908448,3927.9,3926.6,0.8305]
[1734361430436,3.43908448,3927.9,3926.6,0.8305]
[1734361432252,2.98438405,3927.7,3926.6,0.8305]
[1734361433879,2.98438405,3927.2,3926.6,0.8305]
[1734361434784,2.98438405,3926.7,3926.6,0.8305]
[1734361434945,3.28282246,3926.7,3926.1,0.7717]
[1734361435272,2.98438405,3926.2,3926.1,0.7717]
[1734361435635,2.98438405,3926.7,3926.1,0.7717]
[1734361436259,2.98438405,3926.7,3926.2,0.55]
[1734361436571,2.98438405,3926.7,3926.1,0.7717]
[1734361440386,2.98438405,3927.7,3926.4,0.55]
[1734361440592,2.98438405,3927.7,3924.8,0.25]
[1734361440593,2.98438405,3927.7,3926.6,0.55]
[1734361440793,1.017189,3928.0,3927.0,0.55]
[1734361440948,2.98438405,3928.7,3927.3,0.55]
[1734361441149,0.9782142,3928.3,3927.5,0.8142]
[1734361441484,2.98438405,3928.2,3927.4,0.7744]
[1734361442276,0.7744,3928.1,3927.4,0.7744]
[1734361443445,2.98438405,3928.2,3927.4,0.7744]
[1734361444362,3.37666388,3928.2,3927.4,0.7744]
[1734361444988,2.98438405,3928.2,3927.4,0.7744]
[1734361445205,2.98438405,3927.7,3927.4,0.7744]
[1734361445771,0.9384142,3928.3,3927.4,0.7744]
[1734361445964,2.98438405,3928.2,3927.4,0.7744]
[1734361446409,4.00140205,3928.2,3927.4,0.7744]
[1734361447967,2.98438405,3927.7,3927.4,0.7744]
[1734361448971,2.98438405,3927.7,3925.4,8.89]
[1734361448972,2.98438405,3927.7,3925.8,0.02546005]
[1734361449218,4.43355962,3928.2,3925.5,0.8238]
[1734361449219,2.98438405,3927.2,3925.5,0.8238]
[1734361449510,2.98438405,3927.2,3925.3,0.12790709]
[1734361449511,2.98438405,3927.2,3925.6,0.02546308]
[1734361449709,2.98438405,3927.2,3925.7,0.8282]
[1734361449912,2.98438405,3927.2,3925.8,0.8282]
[1734361451417,2.98438405,3927.7,3926.2,0.55]
[1734361451585,2.98438405,3927.7,3926.6,0.8241]
[1734361451989,4.43355962,3928.2,3926.6,0.8241]
[1734361452193,2.98438405,3927.2,3926.6,0.8241]
[1734361452399,2.98438405,3927.2,3926.7,0.55]
[1734361453124,2.98438405,3927.2,3926.6,0.8241]
[1734361453835,2.98438405,3927.7,3926.6,0.8241]
[1734361454876,2.98438405,3927.2,3926.6,0.8241]
[1734361455081,2.98438405,3926.7,3926.6,0.8241]
[1734361455318,2.98438405,3926.7,3924.6,0.7655]
[1734361455477,2.98438405,3926.7,3924.8,0.7655]
[1734361455676,0.29843841,3926.6,3924.8,0.7655]
[1734361456517,2.98438405,3926.2,3924.8,0.7655]
[1734361456916,2.98438405,3926.2,3924.9,0.83997066]
[1734361457097,1.45243483,3927.7,3924.9,0.83997066]
[1734361457098,2.98438405,3926.7,3924.9,0.83997066]
[1734361457785,2.98438405,3926.7,3925.5,0.8145]
[1734361458015,2.98438405,3926.2,3925.7,0.8145]
[1734361458380,3.28282246,3926.7,3925.7,0.8145]
[1734361458586,3.0,3927.1,3925.7,0.8145]
[1734361458828,3.0,3927.1,3924.5,0.02547157]
[1734361458829,2.98438405,3926.7,3924.6,0.7966]
[1734361458980,2.98438405,3926.7,3924.8,0.8332]
[1734361459187,0.3372984,3926.6,3924.8,0.8332]
[1734361459425,3.0,3926.1,3924.8,0.8332]
[1734361459727,2.98438405,3925.7,3924.8,0.8332]
[1734361460411,1.40113323,3926.6,3924.8,0.8332]
[1734361460412,2.98438405,3926.2,3924.8,0.8332]
[1734361460585,2.98438405,3926.2,3924.9,0.55]
[1734361460924,3.28282246,3926.2,3924.9,0.55]
[1734361461280,3.28282246,3926.2,3924.8,0.8332]
[1734361461522,2.98438405,3925.7,3924.8,0.8332]
[1734361462008,2.98438405,3925.2,3924.8,0.8332]
[1734361462388,2.98438405,3925.2,3924.4,1.03611519]
[1734361462606,3.28282246,3925.2,3924.4,1.03611519]
[1734361463237,2.98438405,3925.2,3924.4,1.03611519]
[1734361464227,1.36227324,3926.2,3924.4,1.03611519]
[1734361464228,6.28282246,3926.2,3924.7,0.796]
[1734361464433,3.28282246,3926.2,3924.9,0.796]
[1734361464637,3.28282246,3926.2,3925.2,0.55]
[1734361464638,2.98438405,3926.2,3925.2,0.55]
[1734361464842,2.98438405,3926.7,3925.4,0.55]
[1734361464986,2.98438405,3927.2,3925.6,0.55]
[1734361465186,1.45243483,3928.0,3925.8,0.55]
[1734361465485,1.45243483,3928.0,3926.0,0.7838]
[1734361465486,2.98438405,3927.5,3926.0,0.7838]
[1734361465685,2.98438405,3927.0,3926.0,0.7838]
[1734361468416,2.98438405,3927.5,3926.0,0.7838]
[1734361468617,3.0,3928.0,3926.1,0.57546495]
[1734361468782,2.98438405,3928.1,3926.4,0.7878]
[1734361468985,2.98438405,3928.1,3926.6,0.8322]
[1734361469919,1.017018,3928.2,3926.7,0.8011]
[1734361470089,1.017018,3928.2,3926.9,0.8011]
[1734361470794,1.017018,3928.2,3927.0,0.57545848]
[1734361470996,0.1640142,3928.3,3927.0,0.57545848]
[1734361470997,0.1640142,3928.3,3927.0,0.57545593]
[1734361471229,0.1640142,3928.3,3927.1,0.8011]
[1734361471426,0.1640142,3928.3,3927.2,0.13511]
[1734361471733,3.14839825,3928.3,3927.1,0.8011]
[1734361472498,0.1640142,3928.3,3926.4,0.8044]
[1734361472694,0.1640142,3928.3,3926.7,0.55]
[1734361472896,0.1640142,3928.3,3927.1,0.8044]
[1734361473928,0.1640142,3928.3,3927.3,0.7673]
[1734361474895,0.1640142,3928.3,3927.3,0.7793]
[1734361475209,0.1640142,3928.3,3927.5,0.7793]
[1734361475538,0.1640142,3928.3,3927.7,0.7646]
[1734361479923,3.14839825,3928.3,3926.3,0.781]
[1734361480250,2.98438405,3927.8,3926.4,0.07945698]
[1734361480555,2.98438405,3927.8,3926.3,0.781]
[1734361480556,3.0,3927.7,3926.3,0.781]
[1734361481150,3.35369982,3928.2,3926.3,0.781]
[1734361481363,3.35369982,3928.2,3926.4,0.07946211]
[1734361481648,0.35369982,3928.2,3926.5,0.8766528]
[1734361481805,0.38906981,3928.1,3926.5,0.7972]
[1734361483145,0.38906981,3928.1,3926.6,0.07945873]
[1734361483310,0.38906981,3928.1,3926.5,0.7972]
[1734361484141,0.38906981,3928.1,3926.6,0.07945696]
[1734361484451,0.38906981,3928.1,3926.5,0.7972]
[1734361485060,0.12891898,3928.2,3926.6,0.02546123]
[1734361485216,0.12891898,3928.2,3925.3,3.56381505]
[1734361485217,0.12891898,3928.2,3926.7,0.90655596]
[1734361485417,0.12891898,3928.2,3926.8,0.07945596]
[1734361485650,0.12891898,3928.2,3925.6,0.02546025]
[1734361485651,0.12891898,3928.2,3926.9,0.8271]
[1734361485959,0.1640142,3928.3,3927.1,0.8271]
[1734361486127,0.1640142,3928.3,3927.3,0.8271]
[1734361488054,0.1640142,3928.3,3927.2,0.17111161]
[1734361488055,0.1640142,3928.3,3927.5,0.828]
[1734361488255,0.1640142,3928.3,3927.7,0.796]
[1734361488828,0.1640142,3928.3,3927.8,0.07943318]
[1734361489171,0.1640142,3928.3,3927.7,0.796]
[1734361489313,0.1640142,3928.3,3926.2,9.15531522]
[1734361489314,0.1640142,3928.3,3926.4,0.77]
[1734361489519,2.98438405,3927.9,3926.5,0.28600957]
[1734361489710,0.31483983,3928.2,3926.5,0.28600957]
[1734361489711,2.98438405,3927.4,3926.6,0.07944546]
[1734361489912,2.98438405,3927.4,3926.4,0.77]
[1734361490959,2.98438405,3927.0,3926.4,0.77]
[1734361491161,3.0,3926.9,3926.2,0.26531522]
[1734361491361,2.98438405,3926.5,3926.2,0.26531522]
[1734361491514,2.98438405,3926.5,3924.0,0.12771388]
[1734361491715,2.98438405,3926.5,3925.5,0.26542425]
[1734361491960,3.68703841,3926.9,3925.5,0.26542425]
[1734361491961,2.98438405,3926.0,3925.5,0.26542425]
[1734361492164,2.98438405,3925.6,3924.2,0.7808]
[1734361492485,3.37298405,3925.9,3924.8,0.26546307]
[1734361492764,2.98438405,3925.9,3924.9,0.7808]
[1734361493173,3.0,3925.8,3924.9,0.7808]
[1734361493339,2.98438405,3925.4,3924.9,0.7808]
[1734361493675,2.98438405,3925.4,3924.4,0.7796]
[1734361493961,3.0,3925.8,3924.1,0.26545199]
[1734361493962,2.98438405,3925.0,3924.1,0.26545199]
[1734361495240,3.0,3925.5,3924.1,0.26545199]
[1734361495564,2.98438405,3925.1,3924.1,0.26545199]
[1734361495870,0.3886,3925.0,3924.1,0.26545199]
[1734361496219,2.98438405,3925.1,3924.1,0.26545199]
[1734361496420,0.12853587,3925.6,3924.2,0.79997969]
[1734361496654,2.98438405,3926.3,3924.2,0.79997969]
[1734361496838,0.37981702,3926.1,3924.2,0.7745]
[1734361497036,0.37981702,3926.1,3924.4,0.7745]
[1734361497267,0.37981702,3926.1,3924.6,0.7745]
[1734361499160,2.98438405,3925.8,3924.6,0.7745]
[1734361499379,2.98438405,3926.3,3924.8,0.7736]
[1734361499574,2.98438405,3926.3,3924.9,0.8530884]
[1734361499878,2.98438405,3926.3,3924.9,0.7736]
[1734361502300,3.0,3925.7,3924.9,0.7736]
[1734361503585,2.98438405,3925.3,3924.2,0.7679]
[1734361503796,3.0,3925.2,3924.2,0.7679]
[1734361504793,3.0,3925.7,3924.2,0.7679]
[1734361506459,2.98438405,3925.3,3924.2,0.7679]
[1734361506793,3.28282246,3925.3,3924.2,0.7679]
[1734361507139,3.0,3925.2,3924.2,0.7679]
[1734361508106,2.98438405,3924.8,3924.1,0.26545199]
[1734361508302,2.98438405,3924.8,3923.8,0.7579]
[1734361508303,3.3886,3924.7,3923.8,0.7579]
[1734361508589,2.98438405,3924.3,3923.8,0.7579]
[1734361508973,2.98438405,3923.9,3923.4,1.06543719]
[1734361509175,3.0,3923.8,3921.6,0.7999]
[1734361509418,3.0,3923.8,3922.9,0.26543441]
[1734361509690,3.12935389,3924.8,3923.0,0.81]
[1734361509889,3.77958768,3924.8,3923.0,0.81]
[1734361510391,3.0,3924.3,3923.0,0.81]
[1734361511875,3.0,3923.8,3923.0,0.81]
[1734361512077,2.98438405,3923.4,3922.6,0.7863]
[1734361512259,3.0,3923.3,3922.6,0.7863]
[1734361512454,0.59843841,3923.2,3921.8,0.7519]
[1734361512661,2.98438405,3922.9,3921.8,0.7519]
[1734361513102,2.98438405,3922.4,3921.8,0.7519]
[1734361513627,0.3886,3923.1,3921.7,0.1590937]
[1734361513628,3.0,3921.8,3921.7,0.1590937]
[1734361514290,3.55,3921.8,3921.7,0.1590937]
[1734361514625,3.69229841,3921.8,3921.7,0.1590937]
[1734361515509,3.0,3921.8,3921.7,0.1590937]
[1734361515710,3.0,3921.8,3921.2,0.7678]
[1734361516280,3.11385271,3921.9,3920.1,0.39825408]
[1734361516281,3.0,3921.3,3920.7,0.824]
[1734361516595,2.98438405,3920.9,3920.2,0.824]
[1734361517642,3.0,3920.8,3920.2,0.824]
[1734361517781,3.59843841,3920.8,3920.2,0.824]
[1734361517979,2.98438405,3920.9,3920.2,0.824]
[1734361518921,2.98438405,3920.4,3919.7,0.8332]
[1734361519346,0.3886,3921.6,3919.7,0.8332]
[1734361519347,2.98438405,3920.9,3919.7,0.8332]
[1734361520797,3.0,3921.2,3919.7,0.8332]
[1734361520798,2.98438405,3920.4,3919.7,0.8332]
[1734361521784,3.0,3920.3,3919.7,0.8332]
[1734361521983,3.10958591,3920.9,3919.7,0.8332]
[1734361522605,0.12520186,3920.9,3919.7,0.8332]
[1734361523004,0.13535984,3922.5,3918.9,0.42385668]
[1734361523005,2.98438405,3921.9,3919.9,0.8073]
[1734361523331,0.3372984,3921.8,3919.5,0.8187]
[1734361523542,0.3372984,3921.8,3919.7,0.8187]
[1734361523684,2.98438405,3921.4,3919.9,0.8187]
[1734361524941,0.12513913,3921.3,3919.9,0.8187]
[1734361525500,3.0,3921.8,3920.0,0.57550545]
[1734361525717,3.11124247,3921.9,3920.2,0.8199]
[1734361526134,3.11124247,3921.9,3920.3,0.07958458]
[1734361526315,3.11124247,3921.9,3920.3,0.8199]
[1734361526532,3.42236672,3921.9,3920.3,0.8199]
[1734361527061,3.0,3921.3,3920.3,0.8199]
[1734361527623,3.42236672,3921.9,3920.3,0.8199]
[1734361527966,3.0,3921.8,3920.3,0.8199]
[1734361529022,0.43798267,3921.9,3920.3,0.8199]
[1734361529224,0.43798267,3921.9,3919.0,0.27550699]
[1734361529225,0.12685842,3921.9,3920.4,0.88918469]
[1734361529430,2.98438405,3922.4,3920.6,0.7587]
[1734361529649,2.98438405,3922.4,3919.1,8.89]
[1734361529650,2.98438405,3922.4,3920.7,0.83828469]
[1734361529973,2.98438405,3922.4,3920.1,3.0]
[1734361529974,2.98438405,3922.4,3920.9,0.7587]
[1734361530120,3.32168245,3922.4,3920.9,0.7587]
[1734361530322,3.32168245,3922.4,3921.0,0.07958469]
[1734361530634,1.526,3923.5,3920.9,0.7587]
[1734361530635,2.98438405,3923.0,3920.9,0.7587]
[1734361530836,3.0,3922.9,3921.2,0.833]
[1734361531134,2.98438405,3923.0,3921.4,0.833]
[1734361532209,0.25,3924.6,3917.7,1.2280953]
[1734361532210,2.98438405,3923.5,3921.6,0.8276]
[1734361532354,2.98438405,3923.5,3921.5,0.1050617]
[1734361532355,2.98438405,3923.5,3921.8,0.8053]
[1734361532553,2.98438405,3923.5,3921.9,0.1050567]
[1734361532764,2.98438405,3923.5,3922.0,0.96442528]
[1734361532989,2.98438405,3923.5,3922.1,0.07956293]
[1734361533198,3.28282246,3923.5,3922.2,0.07956293]
[1734361533352,3.28282246,3923.5,3922.0,0.8053]
[1734361533557,3.28282246,3923.5,3922.1,0.15910687]
[1734361533910,0.3886,3924.0,3920.5,0.02549379]
[1734361533911,2.98438405,3924.0,3922.3,0.7856]
[1734361534059,2.98438405,3923.5,3922.4,0.07955372]
[1734361534261,2.98438405,3923.0,3922.3,0.7856]
[1734361534462,2.98438405,3923.0,3921.8,0.7856]
[1734361534662,2.98438405,3922.5,3921.8,0.7856]
[1734361535202,3.0,3922.4,3921.8,0.7856]
[1734361535563,0.55,3922.8,3921.8,0.7856]
[1734361536560,3.55,3922.4,3920.1,0.7525]
[1734361536756,3.55,3922.4,3920.3,0.7525]
[1734361537008,0.55,3922.2,3920.5,0.7525]
[1734361537209,3.55,3921.9,3920.6,0.34668217]
[1734361537420,3.55,3921.9,3920.7,0.34668217]
[1734361537703,3.55,3921.9,3920.8,0.34668217]
[1734361538000,3.55,3921.9,3920.9,0.15915222]
[1734361538208,0.55,3921.7,3921.0,0.07957611]
[1734361538410,0.55,3921.7,3921.1,0.07957611]
[1734361538608,0.55,3921.7,3921.2,0.07957611]
[1734361538792,0.55,3921.7,3921.3,0.07957611]
[1734361538966,0.55,3921.7,3920.5,0.7525]
[1734361539167,1.26878225,3921.7,3920.6,0.34702115]
[1734361539475,1.26878225,3921.7,3920.7,0.34702115]
[1734361539676,0.55,3921.2,3920.8,0.15916853]
[1734361539888,0.55,3921.2,3920.9,0.07958431]
[1734361540089,0.6534384,3921.1,3920.5,0.7525]
[1734361540415,0.6534384,3921.1,3919.9,0.7567]
[1734361540416,3.0,3920.6,3919.9,0.7567]
[1734361540579,0.55,3920.5,3920.0,0.15921853]
[1734361540789,0.55,3920.5,3920.1,0.0796086]
[1734361540981,0.55,3920.5,3919.9,0.7567]
[1734361541185,1.24229841,3920.5,3920.0,0.0796156]
[1734361541397,1.24229841,3920.5,3919.8,0.39817892]
[1734361541570,1.24229841,3920.5,3919.9,0.07961656]
[1734361541769,1.24229841,3920.5,3920.0,0.07961656]
[1734361542077,1.24229841,3920.5,3920.1,0.07961447]
[1734361542276,0.7979,3920.4,3919.8,0.39817892]
[1734361542512,4.60035825,3920.4,3919.8,0.39817892]
[1734361542713,0.55,3920.1,3919.9,0.07961448]
[1734361543010,3.55,3920.1,3919.8,0.39817892]
[1734361544119,0.3886,3920.0,3919.8,0.39817892]
[1734361544318,0.55,3919.9,3919.8,0.39817892]
[1734361544489,1.29729841,3919.9,3919.8,0.39817892]
[1734361545765,1.29729841,3919.9,3918.3,0.808]
[1734361546127,3.0,3918.8,3918.3,0.808]
[1734361546427,1.29729841,3919.9,3915.7,0.25]
[1734361546428,3.0,3918.4,3917.9,0.7968]
[1734361546634,2.98438405,3918.1,3915.8,0.8074]
[1734361546771,2.98438405,3918.1,3917.8,0.3985527]
[1734361546772,3.0,3918.0,3917.8,0.3985527]
[1734361546972,3.0,3918.0,3917.3,0.8074]
[1734361547178,3.0,3918.5,3917.3,0.8074]
[1734361547490,0.3886,3919.1,3917.3,0.8074]
[1734361547491,0.55,3918.9,3917.8,0.39855086]
[1734361547804,1.24229841,3918.9,3917.8,0.39855086]
[1734361548009,3.55,3918.5,3917.8,0.39855086]
[1734361548781,3.0,3918.1,3917.8,0.39855086]
[1734361549595,0.55,3918.0,3917.8,0.39855086]
[1734361551097,0.55,3918.0,3915.6,0.02552798]
[1734361551098,0.55,3918.0,3915.6,0.812]
[1734361551409,3.0,3916.7,3915.7,0.07967214]
[1734361551611,2.98438405,3917.3,3916.2,0.7738]
[1734361551849,3.0,3917.2,3916.2,0.7738]
[1734361552725,0.55,3917.1,3916.2,0.7738]
[1734361553111,2.98438405,3916.8,3916.2,0.7738]
[1734361553312,3.0,3916.7,3916.2,0.7738]
[1734361553563,0.59843841,3916.6,3916.2,0.7738]
[1734361553706,3.0,3916.7,3916.2,0.7738]
[1734361554408,3.0,3916.7,3916.1,0.39864186]
[1734361555165,3.0,3916.2,3916.1,0.39864186]
[1734361555378,3.55,3916.2,3916.1,0.39864186]
[1734361559073,3.9386,3916.2,3916.1,0.39864186]
[1734361559258,4.63089841,3916.2,3916.1,0.39864186]
[1734361559478,0.55,3916.1,3914.6,0.8118]
[1734361559690,0.55,3916.1,3915.8,0.39879137]
[1734361559885,0.55,3916.1,3915.5,0.7932]
[1734361560198,0.55,3916.1,3915.8,0.39878064]
[1734361560691,0.3886,3917.2,3915.8,0.39878064]
[1734361561028,0.69229841,3918.9,3915.8,0.39878064]
[1734361561029,0.12436459,3917.1,3915.9,0.82673909]
[1734361561153,0.69229841,3918.9,3915.9,0.82673909]
[1734361561154,0.3886,3918.0,3915.9,0.82673909]
[1734361561359,2.98438405,3918.3,3915.9,0.82673909]
[1734361561654,2.98438405,3918.3,3915.8,0.39878064]
[1734361561655,0.3886,3918.4,3916.1,0.8012]
[1734361561881,2.98438405,3918.8,3916.3,0.8012]